fUSD/lending_fUSD_20240527
["ID","MTS","AMOUNT","RATE_DAILY","PERIOD"]
[328094804,1716847832982,-6798.7264,0.00028595,2]
[328094805,1716847832991,-6134.6194,0.00028595,2]
[328094806,1716847833001,-7500.0,0.00028595,2]
[328094807,1716847833011,-500.0,0.00028598,2]
[328094808,1716847833020,-150.67887339,0.00028661,2]
[328094809,1716847833030,-446.16,0.00028684,2]
[328094810,1716847833041,-446.16,0.00028685,2]
[328094811,1716847833051,-398.10173643,0.00028694,2]
[328094812,1716847833060,-198.028393,0.00028694,2]
[328094813,1716847833069,-157.84833633,0.00028694,2]
[328094814,1716847833079,-2502.46916937,0.00028694,2]
[328094815,1716847833095,-456.76620795,0.00028694,2]
[328094816,1716847833106,-850.0,0.00028694,2]
[328094817,1716847833118,-935.25814264,0.00028694,2]
[328094818,1716847833131,-6241.32019456,0.00028694,2]
[328094819,1716847833145,-252.82107477,0.00028694,2]
[328094820,1716847833157,-642.3977412,0.00028694,2]
[328094821,1716847833169,-1168.61131006,0.00028694,2]
[328094822,1716847833179,-203.96513052,0.00028694,2]
[328094823,1716847833188,-155.92992075,0.00028694,2]
[328094824,1716847833198,-209.09061157,0.00028695,2]
[328094825,1716847833211,-1237.26380006,0.00028695,2]
[328094826,1716847833221,-1120.93170164,0.00028695,2]
[328094827,1716847833232,-4954.5574059,0.00028695,2]
[328094828,1716847833243,-5737.6694659,0.00028695,2]
[328094829,1716847833255,-1479.4257306,0.00028695,2]
[328094830,1716847833266,-69932.21179089,0.00028695,2]
[328094831,1716847833278,-19473.48646805,0.00028695,2]
[328094832,1716847833296,-564.72049553,0.00028695,2]
[328094839,1716847837649,-3543.64246004,0.00028695,2]
[328094840,1716847837662,-346.87577262,0.00028695,2]
[328094841,1716847837675,-6983.5860107,0.00028695,2]
[328094842,1716847837730,-1510.06177508,0.00028695,2]
[328094843,1716847837815,-97179.36483591,0.00028695,2]
[328094902,1716847840558,-2723.68358874,0.00028695,2]
[328094903,1716847841224,-7484.02394544,0.00028695,2]
[328094904,1716847841236,-811.7231,0.00028696,2]
[328094905,1716847841246,-160.58882899,0.00028696,2]
[328094906,1716847841256,-155.49460868,0.00028696,2]
[328094907,1716847841265,-1698.26715129,0.00028696,2]
[328094908,1716847841275,-156.32615111,0.00028696,2]
[328094909,1716847841284,-318.29985525,0.00028696,2]
[328094910,1716847841294,-210.92839298,0.00028696,2]
[328094911,1716847841303,-306.37473052,0.00028696,2]
[328094912,1716847841314,-764.56629757,0.00028696,2]
[328094913,1716847841325,-155.0,0.00028696,2]
[328094914,1716847841334,-34836.84432568,0.00028696,2]
[328094915,1716847841347,-513.48021401,0.00028696,2]
[328094916,1716847841359,-1333.99259996,0.00028696,2]
[328094917,1716847841370,-2685.38257568,0.00028696,2]
[328094918,1716847841379,-407.83722133,0.00028696,2]
[328094919,1716847841388,-221.48704095,0.00028696,2]
[328094920,1716847841397,-894.45284741,0.00028696,2]
[328094921,1716847841407,-268.32530534,0.00028696,2]
[328094922,1716847841416,-155.0,0.00028696,2]
[328094923,1716847841427,-282.44814109,0.00028696,2]
[328094924,1716847841437,-157.7887999,0.00028696,2]
[328094925,1716847841450,-200.90274862,0.00028696,2]
[328094926,1716847841461,-195.42376414,0.00028696,2]
[328094927,1716847841470,-266.56703532,0.00028697,2]
[328094928,1716847841479,-599.24006216,0.00028698,2]
[328094929,1716847841489,-1200.46047298,0.00028698,2]
[328094930,1716847841499,-2000.0,0.00028698,2]
[328094932,1716847841508,-200.0,0.00028698,2]
[328094934,1716847841518,-1485.97212,0.00028698,2]
[328094936,1716847841527,-300.0,0.00028712,2]
[328094937,1716847841536,-200.598411,0.00028767,14]
[328094938,1716847841545,-1738.55,0.00028795,2]
[328094939,1716847841555,-522.86,0.00028932,2]
[328094940,1716847841564,-200.0,0.00028985,2]
[328094941,1716847841574,-4343.6582651,0.00029,2]
[328094942,1716847841585,-310.72,0.00029,2]
[328094943,1716847841597,-1927.32400637,0.00029,2]
[328094944,1716847841612,-406.7734298,0.00029,2]
[328094945,1716847841623,-840.71707407,0.00029,2]
[328094965,1716847842680,-15648.88307632,0.00029,2]
[328094966,1716847842771,-17644.195421,0.00029,2]
[328094967,1716847842782,-506.26761822,0.00029,2]
[328094968,1716847842866,-2515.56,0.00029,2]
[328094969,1716847842963,-6820.73264072,0.00029,2]
[328094970,1716847842973,-193.48786301,0.00029017,2]
[328094971,1716847842982,-6599.98009627,0.00029027,2]
[328094972,1716847843057,-2341.34282718,0.00029027,2]
[328094973,1716847843158,-842.7100002,0.00029027,2]
[328094974,1716847843169,-17711.53959324,0.00029027,2]
[328094975,1716847843179,-4306.79254806,0.00029027,2]
[328094976,1716847843188,-188.68808195,0.00029046,2]
[328094977,1716847843198,-188.68808195,0.00029079,2]
[328094978,1716847843207,-188.68808195,0.00029144,2]
[328094979,1716847843216,-300.0,0.0002926,2]
[328094980,1716847843225,-352.32,0.0002926,2]
[328094981,1716847843238,-421.02,0.0002926,2]
[328094982,1716847843247,-150.0,0.0002926,2]
[328094983,1716847843257,-352.32,0.0002926,2]
[328094984,1716847843268,-387.7,0.0002926,2]
[328094985,1716847843277,-163.69,0.0002926,2]
[328094986,1716847843286,-155.87977619,0.00029363,2]
[328094987,1716847843296,-166.66666668,0.00029396,2]
[328094988,1716847843305,-188.68808195,0.0002954,2]
[328094989,1716847843316,-446.16,0.00029549,2]
[328094990,1716847843325,-23937.99168863,0.00029559,2]
[328094991,1716847843336,-3557.58082826,0.00029559,2]
[328094992,1716847843345,-4012.21917171,0.00029559,2]
[328094995,1716847845646,-296.26673161,0.00028694,2]
[328094996,1716847845660,-107.80210441,0.00028694,2]
[328094997,1716847845670,-157.20334897,0.00029026,2]
[328094998,1716847845681,-294.57337635,0.00029559,2]
[328094999,1716847845691,-157.53116754,0.00029583,2]
[328095000,1716847845702,-188.6177203,0.00029589,2]
[328095001,1716847845754,-483.87719183,0.00029589,2]
[328095002,1716847845768,-7470.50508787,0.00029589,2]
[328095003,1716847845778,-200.598411,0.00029589,14]
[328095004,1716847845788,-188.68808195,0.00029665,2]
[328095005,1716847845799,-1000.0,0.000297,2]
[328095006,1716847845811,-415.6,0.00029753,2]
[328095007,1716847845821,-421.33,0.00029753,2]
[328095008,1716847845833,-163.69,0.00029753,2]
[328095009,1716847845843,-150.0,0.00029753,2]
[328095010,1716847845854,-150.0,0.00029753,2]
[328095011,1716847845864,-421.33,0.00029753,2]
[328095012,1716847845875,-163.69,0.00029753,2]
[328095013,1716847845885,-414.56841918,0.00029753,2]
[328095014,1716847845902,-6.76158082,0.00029753,2]
[328095015,1716847845914,-150.0,0.00029753,2]
[328095016,1716847845925,-163.69,0.00029753,2]
[328095017,1716847845935,-352.32,0.00029753,2]
[328095018,1716847845946,-150.0,0.00029753,2]
[328095019,1716847845956,-150.0,0.00029753,2]
[328095020,1716847845967,-5.85663908,0.00029753,2]
[328095021,1716847845980,-306.21779093,0.00029753,2]
[328095022,1716847845999,-40.24556999,0.00029753,2]
[328095023,1716847846010,-150.0,0.00029753,2]
[328095024,1716847846019,-421.33,0.00029753,2]
[328095025,1716847846029,-163.69,0.00029753,2]
[328095026,1716847846040,-150.0,0.00029753,2]
[328095027,1716847846051,-352.32,0.00029753,2]
[328095028,1716847846061,-150.0,0.00029753,2]
[328095029,1716847846071,-352.32,0.00029753,2]
[328095030,1716847846083,-421.33,0.00029753,2]
[328095031,1716847846093,-163.69,0.00029753,2]
[328095032,1716847846103,-150.0,0.00029753,2]
[328095033,1716847846114,-150.0,0.00029753,2]
[328095034,1716847846124,-351.62,0.00029753,2]
[328095035,1716847846135,-842.26,0.00029753,2]
[328095036,1716847846144,-300.0,0.00029753,2]
[328095037,1716847846154,-300.0,0.00029753,2]
[328095038,1716847846163,-150.0,0.00029753,2]
[328095039,1716847846173,-150.0,0.00029753,2]
[328095040,1716847846361,-421.33,0.00029753,2]
[328095041,1716847846373,-421.33,0.00029753,2]
[328095042,1716847846382,-150.0,0.00029753,2]
[328095043,1716847846392,-421.33,0.00029753,2]
[328095044,1716847846402,-800.0,0.00029808,2]
[328095045,1716847846411,-670.39932534,0.0002984,2]
[328095046,1716847846422,-200.0,0.00029894,2]
[328095047,1716847846431,-500.0,0.00029894,2]
[328095048,1716847846441,-200.0,0.00029894,2]
[328095049,1716847846450,-200.0,0.00029895,30]
[328095050,1716847846461,-200.0,0.00029895,2]
[328095051,1716847846470,-1000.0,0.00029895,15]
[328095052,1716847846480,-500.0,0.00029895,2]
[328095053,1716847846489,-500.0,0.00029895,2]
[328095054,1716847846499,-200.0,0.00029895,2]
[328095055,1716847846509,-1000.0,0.000299,2]
[328095056,1716847846518,-172.66527975,0.00029922,2]
[328095057,1716847846528,-214.0,0.00029936,2]
[328095058,1716847846538,-155.01759862,0.00029981,2]
[328095059,1716847846547,-151.31,0.0002999,2]
[328095060,1716847846557,-1000.0,0.0003,7]
[328095061,1716847846567,-13981.95379598,0.0003,10]
[328095062,1716847846579,-62963.41228811,0.0003,10]
[328095063,1716847846589,-183.08410112,0.0003,4]
[328095064,1716847846599,-2350.29549075,0.0003,4]
[328095065,1716847846610,-23905.3946231,0.0003,4]
[328095066,1716847846619,-19470.97658129,0.0003,4]
[328095067,1716847846628,-155.0,0.0003,4]
[328095068,1716847846638,-2830.78207539,0.0003,4]
[328095069,1716847846650,-1384.42,0.0003,4]
[328095073,1716848149693,185.36,0.00025715,120]
[328095080,1716848851115,-330.6386682,0.00013563,2]
[328095081,1716848851134,-516.94245882,0.0001366,2]
[328095082,1716848851153,-303.21997175,0.00013661,2]
[328095083,1716848851172,-648.0,0.00013661,2]
[328095084,1716848851191,-541.62529953,0.00013662,2]
[328095085,1716848851210,-122.54696653,0.00013663,2]
[328095095,1716849031853,-437.04924005,0.00013565,2]
[328095096,1716849031863,-803.0,0.00013663,2]
[328095097,1716849031873,-168.84607197,0.00013665,2]
[328095098,1716849031883,-174.76,0.00013973,2]
[328095099,1716849031894,-1750.43807122,0.00017041,2]
[328095100,1716849031904,-893.12,0.00019452,2]
[328095101,1716849031913,-226.24740682,0.00022567,2]
[328095102,1716849031924,-505.49,0.00023448,2]
[328095103,1716849031933,-157.77800225,0.00024724,2]
[328095104,1716849031943,-150.64449572,0.00024835,2]
[328095105,1716849031953,-150.64449572,0.00024884,2]
[328095106,1716849031963,-1050.0,0.00025,2]
[328095107,1716849031973,-157.77800225,0.00025045,2]
[328095108,1716849031983,-150.4832661,0.00025136,2]
[328095109,1716849031992,-828.98,0.00025243,2]
[328095110,1716849032001,-150.4839618,0.00025249,2]
[328095111,1716849032011,-150.0,0.00025261,2]
[328095112,1716849032020,-368.23,0.00025261,2]
[328095113,1716849032030,-151.82375842,0.0002528,2]
[328095114,1716849032039,-2000.0,0.0002529,2]
[328095115,1716849032049,-5620.93705233,0.00025344,2]
[328095116,1716849032060,-18269.06294767,0.00025344,2]
[328095117,1716849032071,-250.0,0.00025361,2]
[328095118,1716849032081,-242.36,0.00025365,2]
[328095119,1716849032090,-154.03762695,0.00025385,2]
[328095120,1716849032100,-5574.67,0.00025386,2]
[328095121,1716849032110,-156.66533141,0.00025428,2]
[328095122,1716849032120,-239.9,0.00025432,2]
[328095123,1716849032130,-250.0,0.00025432,2]
[328095124,1716849032140,-444.28606583,0.0002544,2]
[328095125,1716849032156,-260.79473481,0.0002544,2]
[328095126,1716849032371,-1231.56919936,0.0002544,2]
[328095127,1716849032380,-8841.21,0.00025441,2]
[328095128,1716849032391,-250.0,0.00025446,2]
[328095129,1716849032400,-201.41,0.00025458,2]
[328095130,1716849032410,-1391.85,0.00025467,2]
[328095131,1716849032419,-155.55968036,0.00025556,2]
[328095132,1716849032429,-156.14974295,0.00025574,2]
[328095133,1716849032439,-150.64449572,0.00025586,2]
[328095134,1716849032449,-156.66533141,0.00025588,2]
[328095135,1716849032458,-795.02,0.00025631,2]
[328095136,1716849032468,-515.67,0.00025662,2]
[328095137,1716849032478,-150.64449572,0.00025712,2]
[328095138,1716849032487,-505.49,0.00025712,2]
[328095139,1716849032498,-352.3,0.00025719,2]
[328095140,1716849032507,-515.67,0.00025732,2]
[328095141,1716849032516,-303.21997175,0.00025802,2]
[328095142,1716849032526,-515.67,0.00025803,2]
[328095143,1716849032535,-175.33,0.00025868,2]
[328095144,1716849032545,-515.67,0.00025873,2]
[328095145,1716849032555,-515.67,0.00025943,2]
[328095146,1716849032564,-156.14974295,0.00025961,2]
[328095147,1716849032575,-150.4839618,0.00026005,2]
[328095148,1716849032584,-515.67,0.00026014,2]
[328095149,1716849032594,-515.67,0.00026084,2]
[328095150,1716849032603,-515.67,0.00026155,2]
[328095151,1716849032613,-515.67,0.00026225,2]
[328095152,1716849032622,-515.67,0.00026295,2]
[328095153,1716849032633,-150.64449572,0.00026296,2]
[328095154,1716849032646,-166.83499667,0.00026299,2]
[328095155,1716849032655,-515.67,0.00026366,2]
[328095156,1716849032665,-515.67,0.00026436,2]
[328095157,1716849032675,-157.77800225,0.00026453,2]
[328095158,1716849032684,-515.67,0.00026506,2]
[328095159,1716849032694,-515.67,0.00026577,2]
[328095160,1716849032703,-515.67,0.00026647,2]
[328095161,1716849032713,-515.67,0.00026718,2]
[328095162,1716849032724,-152.85495085,0.00026723,2]
[328095163,1716849032733,-515.67,0.00026788,2]
[328095164,1716849032743,-515.67,0.00026858,2]
[328095165,1716849032752,-515.67,0.00026929,2]
[328095166,1716849032762,-515.67,0.00026999,2]
[328095167,1716849032772,-4018.79216408,0.00027,2]
[328095168,1716849032782,-1100.0,0.00027,2]
[328095169,1716849032791,-155.47010219,0.0002708,2]
[328095170,1716849032801,-238.21561096,0.0002708,2]
[328095171,1716849032811,-154.61148013,0.00027083,2]
[328095172,1716849032820,-156.66533141,0.00027185,2]
[328095173,1716849032831,-150.4839618,0.00027267,2]
[328095174,1716849032841,-152.96549234,0.00027309,2]
[328095175,1716849032851,-150.64449572,0.00027324,2]
[328095176,1716849032860,-156.14974295,0.00027387,2]
[328095177,1716849032869,-150.4839618,0.00027405,2]
[328095178,1716849032880,-150.4839618,0.00027443,2]
[328095179,1716849032890,-180.0,0.00027516,2]
[328095180,1716849032899,-152.64855572,0.00027656,2]
[328095181,1716849032909,-150.64449572,0.00027897,2]
[328095182,1716849032919,-505.49,0.00027976,2]
[328095183,1716849032931,-150.4839618,0.00028063,2]
[328095184,1716849032941,-150.4839618,0.00028154,2]
[328095185,1716849032951,-239.9,0.00028171,2]
[328095186,1716849032962,-156.66533141,0.00028254,2]
[328095187,1716849032971,-2132.50750441,0.00028393,2]
[328095188,1716849032981,-205.13280041,0.00028393,2]
[328095189,1716849032991,-1382.51190983,0.00028393,2]
[328095190,1716849033001,-155.0,0.00028393,2]
[328095191,1716849033011,-309.452495,0.00028393,2]
[328095192,1716849033020,-460.43267161,0.00028393,2]
[328095193,1716849033030,-576.97713249,0.00028393,2]
[328095194,1716849033039,-328.34116078,0.00028394,2]
[328095195,1716849033049,-7500.0,0.00028395,2]
[328095196,1716849033058,-151.82375842,0.00028427,2]
[328095197,1716849033068,-352.32,0.00028438,2]
[328095198,1716849033078,-325.04,0.00028438,2]
[328095199,1716849033088,-352.32,0.00028438,2]
[328095200,1716849033098,-150.64449572,0.00028439,2]
[328095201,1716849033108,-151.82375842,0.00028456,2]
[328095202,1716849033117,-439.33,0.00028485,2]
[328095203,1716849033126,-391.06069415,0.00028494,2]
[328095204,1716849033337,-1000.807,0.00028494,2]
[328095205,1716849033347,-237832.4421,0.00028495,2]
[328095206,1716849033357,-1000.0,0.00028495,2]
[328095207,1716849033366,-100000.0,0.00028495,2]
[328095208,1716849033376,-155.55968037,0.00028617,2]
[328095209,1716849033386,-160.478729,0.00028767,14]
[328095210,1716849033396,-795.02,0.00028835,2]
[328095211,1716849033406,-152.85495085,0.00028854,2]
[328095212,1716849033415,-156.14974295,0.00028868,2]
[328095213,1716849033425,-154.69455661,0.00028898,2]
[328095214,1716849033435,-154.61148013,0.00028914,2]
[328095215,1716849033445,-150.64449572,0.00028926,2]
[328095216,1716849033454,-338.7,0.00029,10]
[328095217,1716849033464,-156.14974295,0.00029084,2]
[328095218,1716849033473,-156.66533141,0.00029113,2]
[328095219,1716849033483,-152.64855572,0.00029143,2]
[328095220,1716849033492,-150.64449572,0.00029331,2]
[328095221,1716849033502,-215.13326472,0.00029487,2]
[328095222,1716849033512,-358.84104227,0.00029559,2]
[328095223,1716849033521,-160.478729,0.00029589,14]
[328095224,1716849033531,-154.69455661,0.00029633,2]
[328095225,1716849033541,-1000.0,0.000297,2]
[328095226,1716849033551,-1000.0,0.000297,2]
[328095227,1716849033560,-155.0,0.00029752,2]
[328095228,1716849033569,-155.33547321,0.00029752,2]
[328095229,1716849033579,-300.0,0.00029753,2]
[328095230,1716849033588,-300.0,0.00029753,2]
[328095231,1716849033597,-201.36,0.00029753,2]
[328095232,1716849033607,-352.32,0.00029753,2]
[328095233,1716849033616,-150.0,0.00029753,2]
[328095234,1716849033626,-352.32,0.00029753,2]
[328095235,1716849033638,-300.0,0.00029753,2]
[328095236,1716849033648,-421.33,0.00029753,2]
[328095237,1716849033657,-352.32,0.00029753,2]
[328095238,1716849033667,-421.33,0.00029753,2]
[328095239,1716849033677,-421.33,0.00029753,2]
[328095240,1716849033688,-352.32,0.00029753,2]
[328095241,1716849033697,-421.33,0.00029753,2]
[328095242,1716849033706,-419.78,0.00029753,2]
[328095243,1716849033716,-352.32,0.00029753,2]
[328095244,1716849033726,-352.32,0.00029753,2]
[328095245,1716849033736,-352.32,0.00029753,2]
[328095246,1716849033746,-260.21,0.00029753,2]
[328095247,1716849033756,-439.33,0.0002979,2]
[328095248,1716849033765,-1000.0,0.000298,2]
[328095249,1716849033775,-1000.0,0.000298,2]
[328095250,1716849033784,-1856.0,0.000298,2]
[328095251,1716849033794,-1000.0,0.000298,2]
[328095252,1716849033804,-150.64449572,0.00029883,2]
[328095253,1716849033814,-1000.0,0.00029894,15]
[328095254,1716849033824,-200.0,0.00029895,2]
[328095255,1716849033834,-1000.0,0.00029895,15]
[328095256,1716849033844,-500.0,0.00029895,2]
[328095257,1716849033854,-200.0,0.00029895,2]
[328095258,1716849033863,-152.85495085,0.00029968,2]
[328095259,1716849033873,-418.0,0.00029987,5]
[328095260,1716849033882,-1238.3101,0.0002999,2]
[328095261,1716849033892,-8257.46604134,0.0003,4]
[328095262,1716849033902,-30848.0,0.0003,6]
[328095263,1716849033911,-12590.33084534,0.00030005,2]
[328095267,1716849042328,-480.00075916,0.00030005,2]
[328095268,1716849042338,-289.04255424,0.00030036,2]
[328095287,1716849042884,-710.95744576,0.00030036,2]
[328095290,1716849042894,-152.31286807,0.00030036,2]
[328095293,1716849042904,-172.66527975,0.00030036,2]
[328095295,1716849042913,-163.00887148,0.00030036,2]
[328095298,1716849042923,-162.10824669,0.00030036,2]
[328095300,1716849042932,-13919.60196311,0.00030036,2]
[328095316,1716849043401,-1354.86880981,0.00030036,2]
[328095317,1716849043411,-150.64449572,0.00030036,7]
[328095318,1716849043421,-1685.59756002,0.00030036,2]
[328095319,1716849043430,-189.02310332,0.00030036,5]
[328095320,1716849043439,-205.56300982,0.00030036,2]
[328095321,1716849043449,-162.67573834,0.00030036,2]
[328095322,1716849043458,-157.052806,0.00030048,34]
[328095323,1716849043467,-439.33,0.00030079,2]
[328095324,1716849043477,-238.04804517,0.00030079,2]
[328095325,1716849043486,-151.27,0.0003008,2]
[328095326,1716849043495,-417.45255306,0.00030089,4]
[328095327,1716849043505,-155.0,0.00030089,4]
[328095328,1716849043514,-227.13742632,0.00030089,4]
[328095329,1716849043523,-142661.55460853,0.00030089,4]
[328095330,1716849043532,-506.3824181,0.00030089,4]
[328095331,1716849043542,-162.44741274,0.00030089,4]
[328095332,1716849043551,-150.0,0.00030089,2]
[328095333,1716849043560,-5514.19481281,0.0003009,2]
[328095334,1716849043570,-118869.48243315,0.0003009,2]
[328095335,1716849043579,-157.052806,0.00030098,36]
[328095337,1716849043588,-487.0,0.000301,14]
[328095338,1716849043597,-344.0,0.000301,2]
[328095339,1716849043606,-160.0,0.000301,2]
[328095340,1716849043615,-2000.0,0.000301,2]
[328095341,1716849043624,-150.0,0.000301,6]
[328095342,1716849043633,-150.0,0.000301,6]
[328095343,1716849043647,-3261.858031,0.0003011,2]
[328095344,1716849043657,-439.33,0.00030117,2]
[328095345,1716849043666,-368.0,0.00030125,5]
[328095346,1716849043675,-1137374.47466201,0.00030125,3]
[328095351,1716849045979,-2565.08,0.00030125,3]
[328095352,1716849046121,-221827.13361663,0.00030125,3]
[328095353,1716849046133,-2752.37271143,0.00030125,3]
[328095354,1716849046262,-975.00451163,0.00030125,3]
[328095355,1716849129763,176.65,0.00029065,120]
[328095367,1716850043204,-155.0,0.00013481,2]
[328095368,1716850043227,-86.1726682,0.00013482,2]
[328095375,1716850231994,-155.0,0.00013479,2]
[328095376,1716850232005,-150.0,0.0001348,2]
[328095377,1716850232015,-150.0,0.0001348,2]
[328095378,1716850232024,-0.94522447,0.0001348,2]
[328095379,1716850232168,-299.05477553,0.0001348,2]
[328095380,1716850232177,-155.0,0.00013497,2]
[328095381,1716850232187,-266.06398485,0.00013498,2]
[328095382,1716850232196,-162.33,0.00013973,2]
[328095383,1716850232207,-158.12,0.00013973,2]
[328095384,1716850232216,-210.0,0.00014828,2]
[328095385,1716850232228,-210.0,0.00014828,2]
[328095386,1716850232238,-150.0,0.00014986,2]
[328095387,1716850232247,-155.61802796,0.00014998,2]
[328095388,1716850232257,-378.83157048,0.00014999,2]
[328095389,1716850232266,-3466.55491349,0.00015,2]
[328095390,1716850232278,-925.20154076,0.00015,2]
[328095391,1716850232289,-1671.1711544,0.00015,2]
[328095392,1716850232301,-31412.7587228,0.00015,2]
[328095393,1716850232311,-155.0,0.00015,2]
[328095394,1716850232320,-499.99,0.0001726,2]
[328095395,1716850232329,-594.92,0.00021387,2]
[328095396,1716850232339,-166.23,0.00021918,2]
[328095397,1716850232348,-787.9608808,0.00022,2]
[328095398,1716850232358,-226.24740682,0.00022592,2]
[328095399,1716850232367,-1374.38,0.000229,5]
[328095400,1716850232377,-547.45866534,0.00023252,2]
[328095401,1716850232386,-250.0,0.00023257,2]
[328095402,1716850232396,-286.75,0.00023286,2]
[328095403,1716850232405,-23900.0,0.00023289,2]
[328095404,1716850232623,-293.58,0.00023292,2]
[328095405,1716850232634,-250.0,0.00023306,2]
[328095406,1716850232645,-250.0,0.00023307,2]
[328095407,1716850232656,-726.26,0.00023351,2]
[328095408,1716850232665,-180.04,0.00023376,2]
[328095409,1716850232675,-2005.79258683,0.000234,2]
[328095410,1716850232684,-835.0,0.000234,3]
[328095411,1716850232693,-3977.0,0.000234,3]
[328095412,1716850232702,-200.0,0.00023402,2]
[328095413,1716850232711,-157.23,0.00023512,2]
[328095414,1716850232720,-263.53,0.00023539,2]
[328095415,1716850232731,-175.65,0.00023623,2]
[328095416,1716850232740,-175.65,0.00023629,2]
[328095417,1716850232751,-175.65,0.00023635,2]
[328095418,1716850232760,-175.65,0.00023642,2]
[328095419,1716850232770,-2000.0,0.00023644,2]
[328095420,1716850232779,-175.65,0.00023648,2]
[328095421,1716850232788,-594.92,0.00023651,2]
[328095422,1716850232797,-175.65,0.00023654,2]
[328095423,1716850232807,-175.65,0.0002366,2]
[328095424,1716850232816,-175.65,0.00023666,2]
[328095425,1716850232825,-175.65,0.00023673,2]
[328095426,1716850232834,-175.65,0.00023679,2]
[328095427,1716850232843,-175.65,0.00023685,2]
[328095428,1716850232852,-175.65,0.00023691,2]
[328095429,1716850232861,-175.65,0.00023698,2]
[328095430,1716850232870,-175.65,0.00023704,2]
[328095431,1716850232879,-175.65,0.0002371,2]
[328095432,1716850232891,-175.65,0.00023716,2]
[328095433,1716850232903,-175.65,0.00023722,2]
[328095434,1716850232915,-175.65,0.00023729,2]
[328095435,1716850232924,-175.65,0.00023735,2]
[328095436,1716850232933,-175.65,0.00023741,2]
[328095437,1716850232943,-666.83,0.00024206,2]
[328095438,1716850232952,-1537.12,0.00024267,2]
[328095439,1716850232961,-167.0,0.00024353,2]
[328095440,1716850232970,-152.65934856,0.00024504,2]
[328095441,1716850232979,-156.061984,0.00024545,2]
[328095442,1716850232988,-303.26,0.00024658,2]
[328095443,1716850233002,-150.45,0.00024677,2]
[328095444,1716850233011,-153.14612884,0.00024733,2]
[328095445,1716850233020,-161.38596787,0.00024946,2]
[328095446,1716850233031,-152.26919471,0.0002495,2]
[328095447,1716850233045,-152.65934856,0.00025098,2]
[328095448,1716850233056,-162.33,0.00025156,2]
[328095449,1716850233067,-152.26919471,0.00025203,2]
[328095450,1716850233076,-150.4832661,0.00025309,2]
[328095451,1716850233086,-151.69477326,0.00025385,2]
[328095452,1716850233096,-153.87459488,0.0002544,2]
[328095453,1716850233105,-155.7175088,0.00025463,2]
[328095454,1716850233115,-151.35091194,0.00025521,2]
[328095455,1716850233125,-152.65934856,0.00025545,2]
[328095456,1716850233134,-167.0,0.00025693,2]
[328095457,1716850233144,-152.65934856,0.00025911,2]
[328095458,1716850233153,-594.92,0.00025915,2]
[328095459,1716850233164,-180.0,0.00025962,2]
[328095460,1716850233174,-150.45,0.00026047,2]
[328095461,1716850233183,-151.69477326,0.0002606,2]
[328095462,1716850233193,-151.35091194,0.00026082,2]
[328095463,1716850233202,-152.65934856,0.00026196,2]
[328095464,1716850233212,-726.26,0.0002627,2]
[328095465,1716850233221,-152.65934856,0.00026282,2]
[328095466,1716850233231,-151.35091194,0.00026357,2]
[328095467,1716850233240,-151.69477326,0.0002646,2]
[328095468,1716850233249,-153.14612884,0.00026565,2]
[328095469,1716850233258,-151.69477326,0.00026601,2]
[328095470,1716850233268,-152.65934856,0.00026647,2]
[328095471,1716850233277,-151.35091194,0.00026652,2]
[328095472,1716850233287,-151.69477326,0.00026761,2]
[328095473,1716850233296,-151.69477326,0.00026798,2]
[328095474,1716850233306,-452.09796917,0.00026809,2]
[328095475,1716850233316,-153.02525692,0.00026871,2]